[Event "34rd NATO Championship 2024"]
[Site "Rhodes"]
[Date "2024.10.22"]
[Round "3.10"]
[White "Flaata, Alexander R."]
[Black "Rahmanidis, Petros"]
[Result "0-1"]
[ECO "B56"]
[WhiteElo "2040"]
[BlackElo "2219"]
[Annotator "RC"]
[PlyCount "120"]
[EventDate "2024.09.18"]
[EventType "swiss"]
[EventCountry "GRE"]
[SourceTitle "playchess.com"]
[Source "ChessBase"]
[SourceQuality "1"]
[TimeControl "5400+30"]

1. e4 {[%emt 0:00:12]} c5 {[%emt 0:00:28]} 2. Nf3 {[%emt 0:00:57]} d6 {[%emt 0:01:54]} 3. d4 {[%emt 0:04:41]} cxd4 {[%emt 0:00:29]} 4. Nxd4 {[%emt 0:01:13]} Nf6 {[%emt 0:00:19]} 5. Nc3 {[%emt 0:00:14]} Nc6 {[%emt 0:00:20]} 6. f4 {[%emt 0:08:19]} Bd7 {[%emt 0:23:41]} 7. Nxc6 {[%emt 0:07:08]} Bxc6 {[%emt 0:03:23]} 8. Bd3 {[%emt 0:01:15]} g6 {[%emt 0:03:57]} 9. O-O {[%emt 0:03:22]} Bg7 {[%emt 0:00:59]} 10. e5 {[%emt 0:06:34]} dxe5 {[%emt 0:04:32]} 11. fxe5 {[%emt 0:00:46]} Qd4+ {[%emt 0:01:33]} 12. Kh1 {[%emt 0:00:06]} Qxe5 {[%emt 0:00:08]} 13. Bf4 {[%emt 0:01:17]} Qc5 {[%emt 0:09:10]} 14. Qe2 {[%emt 0:02:11]} O-O {[%emt 0:04:37]} 15. Rae1 {[%emt 0:00:17]} Nd5 {[%emt 0:20:34]} 16. Nxd5 {[%emt 0:01:00]} Bxd5 {[%emt 0:01:07]} 17. Qxe7 {[%emt 0:08:08]} Qxe7 {[%emt 0:00:46]} 18. Rxe7 {[%emt 0:00:06]} Bxb2 {[%emt 0:01:03]} 19. c4 {[%emt 0:03:06]} Bc6 {[%emt 0:02:04]} 20. Bd6 {[%emt 0:01:09]} Rae8 {[%emt 0:04:54]} 21. Rc7 {[%emt 0:01:07]} Be5 {[%emt 0:01:21]} 22. Rxc6 {[%emt 0:01:43]} bxc6 {[%emt 0:00:14]} 23. Bxf8 {[%emt 0:00:13]} Kxf8 {[%emt 0:00:50]} 24. Be4 {[%emt 0:05:18]} Re6 {[%emt 0:03:05]} 25. Bf3 {[%emt 0:00:47]} Ke7 {[%emt 0:01:38]} 26. g3 {[%emt 0:01:00]} Kd6 {[%emt 0:02:11]} 27. Rd1+ {[%emt 0:03:01]} Kc7 {[%emt 0:00:41]} 28. Kg2 {[%emt 0:00:56]} Bd6 {[%emt 0:00:43]} 29. Rd3 {[%emt 0:07:22]} Re5 {[%emt 0:00:43]} 30. Bd1 {[%emt 0:00:33]} Re4 {[%emt 0:02:57]} 31. Bb3 {[%emt 0:00:53]} Re2+ {[%emt 0:00:31]} 32. Kh3 {[%emt 0:00:34]} f5 {[%emt 0:00:51]} 33. Rf3 {[%emt 0:04:02]} h5 {[%emt 0:02:02]} 34. Rf1 {[%emt 0:02:57]} Be7 {[%emt 0:01:31]} 35. Bd1 {[%emt 0:03:27]} Rxa2 {[%emt 0:00:46]} 36. Re1 {[%emt 0:00:18]} Bd8 {[%emt 0:00:56]} 37. Re2 {[%emt 0:02:48]} Rxe2 {[%emt 0:01:04]} 38. Bxe2 {[%emt 0:00:06]} Kb6 {[%emt 0:00:37]} 39. Kg2 {[%emt 0:00:36]} Kc5 {[%emt 0:00:32]} 40. Kf2 {[%emt 0:00:30]} a5 {[%emt 0:00:41]} 41. Ke3 {[%emt 0:00:17]} a4 {[%emt 0:00:21]} 42. Kd3 {[%emt 0:00:07]} Bf6 {[%emt 0:00:26]} 43. Kc2 {[%emt 0:00:20]} Kb4 {[%emt 0:00:46]} 44. Kb1 {[%emt 0:00:56]} c5 {[%emt 0:00:26]} 45. Ka2 {[%emt 0:02:17]} Bd4 {[%emt 0:00:25]} 46. h3 {[%emt 0:00:17]} Be5 {[%emt 0:00:12]} 47. g4 {[%emt 0:00:07]} fxg4 {[%emt 0:00:08]} 48. hxg4 {[%emt 0:00:13]} h4 {[%emt 0:00:12]} 49. Bf1 {[%emt 0:00:09]} g5 {[%emt 0:00:12]} 50. Kb1 {[%emt 0:00:34]} Kb3 {[%emt 0:00:16]} 51. Be2 {[%emt 0:01:16]} h3 {[%emt 0:00:18]} 52. Bd1+ {[%emt 0:00:36]} Kb4 {[%emt 0:00:38]} 53. Ka2 {[%emt 0:00:35]} h2 {[%emt 0:00:10]} 54. Bf3 {[%emt 0:00:05]} a3 {[%emt 0:00:19]} 55. Bd5 {[%emt 0:00:24]} Bb2 {[%emt 0:00:08]} 56. Bf3 {[%emt 0:02:46]} Kxc4 {[%emt 0:00:08]} 57. Kb1 {[%emt 0:01:00]} Kd3 {[%emt 0:00:20]} 58. Bg2 {[%emt 0:00:19]} c4 {[%emt 0:00:07]} 59. Bf1+ {[%emt 0:00:22]} Kd2 {[%emt 0:00:09]} 60. Bg2 {[%emt 0:00:58]} c3 {[%emt 0:00:07]} 0-1

[Event "34rd NATO Championship 2024"]
[Site "Rhodes"]
[Date "2024.10.22"]
[Round "3.11"]
[White "Nilsson, Erik"]
[Black "Circenis, Kaspars"]
[Result "1/2-1/2"]
[ECO "D35"]
[WhiteElo "2028"]
[BlackElo "2120"]
[Annotator "RC"]
[PlyCount "113"]
[EventDate "2024.09.18"]
[EventType "swiss"]
[EventCountry "GRE"]
[SourceTitle "playchess.com"]
[Source "ChessBase"]
[SourceQuality "1"]
[TimeControl "5400+30"]

1. d4 {[%emt 0:00:03]} d5 {[%emt 0:00:04]} 2. c4 {[%emt 0:00:06]} e6 {[%emt 0:00:04]} 3. Nc3 {[%emt 0:00:06]} Nf6 {[%emt 0:00:09]} 4. cxd5 {[%emt 0:00:56]} exd5 {[%emt 0:00:04]} 5. Bg5 {[%emt 0:00:08]} c6 {[%emt 0:01:07]} 6. e3 {[%emt 0:00:30]} Bb4 {[%emt 0:01:23]} 7. Bd3 {[%emt 0:01:04]} Nbd7 {[%emt 0:00:50]} 8. Nge2 {[%emt 0:00:40]} O-O {[%emt 0:00:53]} 9. O-O {[%emt 0:00:57]} h6 {[%emt 0:00:08]} 10. Bh4 {[%emt 0:00:22]} Re8 {[%emt 0:00:32]} 11. a3 {[%emt 0:01:38]} Be7 {[%emt 0:01:21]} 12. f3 {[%emt 0:05:31]} c5 {[%emt 0:03:13]} 13. Bf2 {[%emt 0:03:27]} b6 {[%emt 0:01:58]} 14. Kh1 {[%emt 0:00:55]} Bb7 {[%emt 0:00:16]} 15. Qd2 {[%emt 0:02:19]} Bd6 {[%emt 0:02:57]} 16. Bg1 {[%emt 0:00:34]} Rc8 {[%emt 0:03:40]} 17. Rab1 {[%emt 0:02:07]} a6 {[%emt 0:00:30]} 18. Rbd1 {[%emt 0:00:30]} b5 {[%emt 0:09:57]} 19. dxc5 {[%emt 0:05:15]} Bxc5 {[%emt 0:01:27]} 20. b4 {[%emt 0:01:10]} Ba7 {[%emt 0:03:14]} 21. a4 {[%emt 0:03:45]} bxa4 {[%emt 0:00:56]} 22. Nxa4 {[%emt 0:00:23]} Qe7 {[%emt 0:00:46]} 23. Nd4 {[%emt 0:01:30]} Ne5 {[%emt 0:02:00]} 24. Nb2 {[%emt 0:09:48]} Nc4 {[%emt 0:02:04]} 25. Bxc4 {[%emt 0:04:54]} dxc4 {[%emt 0:00:03]} 26. Rc1 {[%emt 0:00:12]} c3 {[%emt 0:00:30]} 27. Rxc3 {[%emt 0:00:30]} Qxb4 {[%emt 0:02:09]} 28. Rd3 {[%emt 0:01:11]} Qxd2 {[%emt 0:04:16]} 29. Rxd2 {[%emt 0:00:07]} Red8 {[%emt 0:02:10]} 30. Rfd1 {[%emt 0:02:23]} Bc5 {[%emt 0:15:39]} 31. e4 {[%emt 0:08:27]} Bb4 {[%emt 0:00:23]} 32. Rc2 {[%emt 0:00:27]} a5 {[%emt 0:01:41]} 33. Rdc1 {[%emt 0:03:48]} Rxc2 {[%emt 0:08:13]} 34. Rxc2 {[%emt 0:00:29]} Ne8 {[%emt 0:00:47]} 35. Nd3 {[%emt 0:04:32]} Bf8 {[%emt 0:04:39]} 36. Nc5 {[%emt 0:01:14]} Bxc5 {[%emt 0:00:30]} 37. Rxc5 {[%emt 0:00:30]} Ra8 {[%emt 0:01:33]} 38. Nb5 {[%emt 0:01:32]} a4 {[%emt 0:00:43]} 39. Nc7 {[%emt 0:07:32]} Nxc7 {[%emt 0:00:45]} 40. Rxc7 {[%emt 0:00:09]} Bc8 {[%emt 0:02:24]} 41. Ra7 {[%emt 0:00:19]} Rxa7 {[%emt 0:00:18]} 42. Bxa7 {[%emt 0:00:11]} a3 {[%emt 0:00:04]} 43. Kg1 {[%emt 0:00:13]} a2 {[%emt 0:00:02]} 44. Bd4 {[%emt 0:00:16]} f5 {[%emt 0:02:05]} 45. exf5 {[%emt 0:00:28]} Bxf5 {[%emt 0:00:02]} 46. g4 {[%emt 0:00:21]} Bd7 {[%emt 0:01:30]} 47. Kf2 {[%emt 0:00:47]} Kf7 {[%emt 0:00:04]} 48. h4 {[%emt 0:03:01]} g6 {[%emt 0:05:06]} 49. Ke3 {[%emt 0:01:44]} Ke6 {[%emt 0:01:13]} 50. Kd2 {[%emt 0:02:03]} Kd5 {[%emt 0:00:14]} 51. Bg7 {[%emt 0:00:19]} Kc4 {[%emt 0:02:15]} 52. Kc2 {[%emt 0:00:20]} Be6 {[%emt 0:01:09]} 53. Kb2 {[%emt 0:00:22]} Kd3 {[%emt 0:04:14]} 54. Bxh6 {[%emt 0:00:18]} Ke2 {[%emt 0:00:29]} 55. h5 {[%emt 0:00:26]} gxh5 {[%emt 0:00:30]} 56. gxh5 {[%emt 0:00:30]} Kxf3 {[%emt 0:00:28]} 57. Bg7 {[%emt 0:00:00]} 1/2-1/2

[Event "34rd NATO Championship 2024"]
[Site "Rhodes"]
[Date "2024.10.22"]
[Round "3.12"]
[White "Parker, Glen D"]
[Black "Jacob, Tobias"]
[Result "0-1"]
[ECO "B22"]
[WhiteElo "1979"]
[BlackElo "2073"]
[Annotator "RC"]
[PlyCount "117"]
[EventDate "2024.09.18"]
[EventType "swiss"]
[EventCountry "GRE"]
[SourceTitle "playchess.com"]
[Source "ChessBase"]
[SourceQuality "1"]
[TimeControl "5400+30"]

1. e4 {[%emt 0:00:04]} c5 {[%emt 0:00:05]} 2. c3 {[%emt 0:00:25]} d5 {[%emt 0:00:04]} 3. exd5 {[%emt 0:00:07]} Qxd5 {[%emt 0:00:08]} 4. Nf3 {[%emt 0:00:22]} Nf6 {[%emt 0:00:08]} 5. d4 {[%emt 0:03:27]} e6 {[%emt 0:00:08]} 6. Be2 {[%emt 0:14:06]} cxd4 {[%emt 0:02:16]} 7. cxd4 {[%emt 0:02:11]} Bb4+ {[%emt 0:04:42]} 8. Nc3 {[%emt 0:01:03]} O-O {[%emt 0:06:33]} 9. O-O {[%emt 0:00:17]} Qd6 {[%emt 0:11:10]} 10. Nb5 {[%emt 0:14:56]} Qb6 {[%emt 0:02:38]} 11. a3 {[%emt 0:15:30]} Be7 {[%emt 0:01:24]} 12. b4 {[%emt 0:08:11]} Nd5 {[%emt 0:05:13]} 13. Bc4 {[%emt 0:03:15]} Bd7 {[%emt 0:04:14]} 14. Bxd5 {[%emt 0:06:05]} Bxb5 {[%emt 0:00:30]} 15. Re1 {[%emt 0:00:20]} Rd8 {[%emt 0:09:04]} 16. Bb3 {[%emt 0:02:28]} Bc6 {[%emt 0:08:18]} 17. Be3 {[%emt 0:04:17]} Bd5 {[%emt 0:03:32]} 18. Bc2 {[%emt 0:00:25]} Nd7 {[%emt 0:03:57]} 19. Qd3 {[%emt 0:03:50]} Nf8 {[%emt 0:07:50]} 20. Ng5 {[%emt 0:04:09]} g6 {[%emt 0:03:23]} 21. Ne4 {[%emt 0:01:48]} Qc6 {[%emt 0:05:58]} 22. f3 {[%emt 0:02:43]} Rac8 {[%emt 0:20:15]} 23. Rac1 {[%emt 0:12:01]} Qc4 {[%emt 0:00:30]} 24. Bb1 {[%emt 0:00:30]} Qxd3 {[%emt 0:00:00]} 25. Bxd3 {[%emt 0:00:00]} f5 {[%emt 0:00:00]} 26. Nc3 {[%emt 0:00:00]} Bc4 {[%emt 0:00:00]} 27. Bxc4 {[%emt 0:00:00]} Rxc4 {[%emt 0:00:00]} 28. Nb5 {[%emt 0:00:00]} Rxc1 {[%emt 0:00:00]} 29. Rxc1 {[%emt 0:00:00]} a6 30. Rc7 {[%emt 0:03:00]} Rd7 {[%emt 0:00:00]} 31. Rxd7 {[%emt 0:00:00]} Nxd7 {[%emt 0:00:00]} 32. Nc7 {[%emt 0:00:00]} Kf7 {[%emt 0:00:00]} 33. d5 {[%emt 0:00:00]} e5 {[%emt 0:00:00]} 34. Ne6 {[%emt 0:00:00]} Nf6 {[%emt 0:01:14]} 35. d6 {[%emt 0:00:00]} Kxe6 {[%emt 0:00:49]} 36. dxe7 {[%emt 0:00:00]} Kxe7 {[%emt 0:00:11]} 37. Kf2 {[%emt 0:00:00]} Ke6 {[%emt 0:00:17]} 38. Ke2 {[%emt 0:00:00]} Kd5 {[%emt 0:00:21]} 39. Bg5 {[%emt 0:00:28]} Ne8 {[%emt 0:01:08]} 40. Kd3 {[%emt 0:00:19]} b5 {[%emt 0:00:26]} 41. g4 {[%emt 0:02:19]} Nd6 {[%emt 0:01:24]} 42. Bc1 {[%emt 0:02:54]} Nc4 {[%emt 0:00:28]} 43. gxf5 {[%emt 0:00:00]} gxf5 {[%emt 0:00:06]} 44. Kc3 {[%emt 0:00:00]} Nd6 {[%emt 0:01:58]} 45. Be3 {[%emt 0:00:00]} Nc8 {[%emt 0:01:17]} 46. Bc5 {[%emt 0:00:00]} a5 {[%emt 0:00:28]} 47. Kd3 {[%emt 0:00:00]} a4 {[%emt 0:00:19]} 48. h4 {[%emt 0:03:00]} Nd6 {[%emt 0:00:16]} 49. Be3 {[%emt 0:00:00]} Nc4 {[%emt 0:00:49]} 50. Bc1 {[%emt 0:00:00]} e4+ {[%emt 0:00:13]} 51. fxe4+ {[%emt 0:00:00]} fxe4+ {[%emt 0:00:02]} 52. Kc3 {[%emt 0:00:00]} Ke5 {[%emt 0:00:20]} 53. h5 {[%emt 0:00:00]} Kd5 {[%emt 0:00:39]} 54. h6 {[%emt 0:00:00]} Ke5 {[%emt 0:00:05]} 55. Bg5 {[%emt 0:00:00]} Nxa3 {[%emt 0:00:15]} 56. Be7 {[%emt 0:00:09]} Nc4 {[%emt 0:00:10]} 57. Bf8 {[%emt 0:00:08]} Ne3 {[%emt 0:01:38]} 58. Kd2 {[%emt 0:00:12]} Nd5 {[%emt 0:00:14]} 59. Kc2 {[%emt 0:00:28]} 0-1

[Event "34rd NATO Championship 2024"]
[Site "Rhodes"]
[Date "2024.10.22"]
[Round "3.13"]
[White "Fichtner, Ewald"]
[Black "Alainis, Artis"]
[Result "0-1"]
[ECO "D00"]
[WhiteElo "2063"]
[BlackElo "1937"]
[Annotator "RC"]
[PlyCount "76"]
[EventDate "2024.09.18"]
[EventType "swiss"]
[EventCountry "GRE"]
[SourceTitle "playchess.com"]
[Source "ChessBase"]
[SourceQuality "1"]
[TimeControl "5400+30"]

1. d4 {[%emt 0:00:03]} d5 {[%emt 0:00:07]} 2. Nc3 {[%emt 0:00:06]} Nf6 {[%emt 0:00:13]} 3. Bf4 {[%emt 0:00:06]} a6 {[%emt 0:00:08]} 4. e3 {[%emt 0:01:23]} b5 {[%emt 0:00:13]} 5. a3 {[%emt 0:00:27]} e6 {[%emt 0:00:34]} 6. b4 {[%emt 0:03:27]} Bd6 {[%emt 0:01:27]} 7. Nf3 {[%emt 0:01:08]} Ne4 {[%emt 0:09:01]} 8. Nxe4 {[%emt 0:06:40]} dxe4 {[%emt 0:00:02]} 9. Bxd6 {[%emt 0:09:28]} cxd6 {[%emt 0:01:13]} 10. Nd2 {[%emt 0:00:10]} d5 {[%emt 0:00:26]} 11. a4 {[%emt 0:02:34]} bxa4 {[%emt 0:01:36]} 12. Rxa4 {[%emt 0:06:46]} O-O {[%emt 0:04:43]} 13. c4 {[%emt 0:02:01]} f5 {[%emt 0:00:24]} 14. g3 {[%emt 0:01:54]} Ra7 {[%emt 0:08:36]} 15. c5 {[%emt 0:04:35]} g5 {[%emt 0:00:33]} 16. b5 {[%emt 0:01:08]} f4 {[%emt 0:03:33]} 17. gxf4 {[%emt 0:03:28]} gxf4 {[%emt 0:00:06]} 18. Rg1+ {[%emt 0:00:44]} Kh8 {[%emt 0:00:19]} 19. Qh5 {[%emt 0:02:19]} Rf5 {[%emt 0:00:54]} 20. Qh6 {[%emt 0:00:54]} Rf6 {[%emt 0:11:40]} 21. Qg5 {[%emt 0:02:49]} Qf8 {[%emt 0:00:15]} 22. c6 {[%emt 0:05:08]} Rf5 {[%emt 0:01:06]} 23. Qh4 {[%emt 0:01:28]} Raf7 {[%emt 0:01:55]} 24. Be2 {[%emt 0:13:39]} R5f6 {[%emt 0:34:40]} 25. Qh5 {[%emt 0:07:15]} Rf5 {[%emt 0:02:46]} 26. Qh4 {[%emt 0:01:48]} Rc7 {[%emt 0:01:09]} 27. bxa6 {[%emt 0:03:58]} Nxc6 {[%emt 0:00:15]} 28. Nb3 {[%emt 0:00:39]} Rff7 {[%emt 0:10:56]} 29. exf4 {[%emt 0:05:23]} Rxf4 {[%emt 0:01:15]} 30. Qg3 {[%emt 0:00:54]} Ra7 {[%emt 0:03:13]} 31. Bb5 {[%emt 0:01:35]} Ne7 {[%emt 0:00:29]} 32. Rg2 {[%emt 0:02:43]} Ng6 {[%emt 0:00:39]} 33. Qg5 {[%emt 0:02:45]} Rf5 {[%emt 0:01:43]} 34. Qg3 {[%emt 0:00:48]} Rf3 {[%emt 0:00:25]} 35. Qb8 {[%emt 0:00:09]} Rxb3 {[%emt 0:00:07]} 36. Qxa7 {[%emt 0:00:56]} Rxb5 {[%emt 0:00:04]} 37. Qc7 {[%emt 0:01:20]} Rb1+ {[%emt 0:00:37]} 38. Ke2 {[%emt 0:04:05]} Qf3+ {[%emt 0:02:08]} 0-1

[Event "34rd NATO Championship 2024"]
[Site "Rhodes"]
[Date "2024.10.22"]
[Round "3.14"]
[White "Skwarczynski, Marcin"]
[Black "Schott, Guido"]
[Result "1-0"]
[ECO "A83"]
[WhiteElo "1940"]
[BlackElo "2059"]
[Annotator "RC"]
[PlyCount "85"]
[EventDate "2024.09.18"]
[EventType "swiss"]
[EventCountry "GRE"]
[SourceTitle "playchess.com"]
[Source "ChessBase"]
[SourceQuality "1"]
[TimeControl "5400+30"]

1. d4 {[%emt 0:01:22]} f5 {[%emt 0:00:47]} 2. e4 {[%emt 0:00:14]} fxe4 {[%emt 0:00:28]} 3. Nc3 {[%emt 0:00:04]} Nf6 {[%emt 0:00:32]} 4. Bg5 {[%emt 0:00:11]} Nc6 {[%emt 0:00:17]} 5. f3 {[%emt 0:05:50]} e3 {[%emt 0:01:43]} 6. Bxe3 {[%emt 0:00:23]} d5 {[%emt 0:10:44]} 7. Bf4 {[%emt 0:33:00]} a6 {[%emt 0:06:24]} 8. g4 {[%emt 0:00:18]} Be6 {[%emt 0:03:58]} 9. h4 {[%emt 0:02:36]} Bf7 {[%emt 0:11:56]} 10. Qd2 {[%emt 0:08:27]} e6 {[%emt 0:05:37]} 11. a3 {[%emt 0:00:04]} Bd6 {[%emt 0:05:43]} 12. Nge2 {[%emt 0:05:28]} Qe7 {[%emt 0:10:40]} 13. Qe3 {[%emt 0:02:10]} O-O-O {[%emt 0:02:50]} 14. Bh3 {[%emt 0:02:47]} Kb8 {[%emt 0:00:43]} 15. Bxd6 {[%emt 0:01:05]} Rxd6 {[%emt 0:02:00]} 16. f4 {[%emt 0:02:18]} Re8 {[%emt 0:08:45]} 17. b4 {[%emt 0:07:13]} Bg6 {[%emt 0:03:04]} 18. Rc1 {[%emt 0:02:11]} Ne4 {[%emt 0:03:33]} 19. Bg2 {[%emt 0:02:02]} Nxc3 {[%emt 0:04:04]} 20. Nxc3 {[%emt 0:00:35]} Qf6 {[%emt 0:00:19]} 21. h5 {[%emt 0:05:04]} Bf7 {[%emt 0:03:53]} 22. Ne2 {[%emt 0:00:32]} g6 {[%emt 0:03:10]} 23. g5 {[%emt 0:01:35]} Qh8 {[%emt 0:00:47]} 24. h6 {[%emt 0:01:53]} e5 {[%emt 0:00:44]} 25. dxe5 {[%emt 0:01:03]} Nxe5 {[%emt 0:00:44]} 26. fxe5 {[%emt 0:00:14]} Rxe5 {[%emt 0:00:06]} 27. Qd2 {[%emt 0:04:24]} Rde6 {[%emt 0:01:57]} 28. Bf3 {[%emt 0:02:14]} Re3 {[%emt 0:00:18]} 29. Kf2 {[%emt 0:03:46]} Qe5 {[%emt 0:00:09]} 30. Nd4 {[%emt 0:00:52]} Qf4 {[%emt 0:00:10]} 31. Rce1 {[%emt 0:01:58]} R6e4 {[%emt 0:03:17]} 32. Rxe3 {[%emt 0:01:13]} Rxd4 {[%emt 0:00:05]} 33. Qc1 {[%emt 0:00:48]} Rc4 {[%emt 0:00:52]} 34. Rd3 {[%emt 0:01:05]} Qf5 {[%emt 0:00:21]} 35. Qd2 {[%emt 0:01:17]} Rf4 {[%emt 0:00:36]} 36. Rg1 {[%emt 0:00:42]} d4 {[%emt 0:00:13]} 37. Rg3 {[%emt 0:00:31]} Bd5 {[%emt 0:00:38]} 38. Kg2 {[%emt 0:00:19]} Rxf3 {[%emt 0:03:08]} 39. Rdxf3 {[%emt 0:00:28]} Bxf3+ {[%emt 0:00:11]} 40. Rxf3 {[%emt 0:00:15]} Qg4+ {[%emt 0:00:05]} 41. Rg3 {[%emt 0:01:04]} Qe4+ {[%emt 0:00:08]} 42. Kg1 {[%emt 0:00:32]} Qe5 {[%emt 0:01:13]} 43. Qf2 {[%emt 0:00:29]} 1-0

[Event "34rd NATO Championship 2024"]
[Site "Rhodes"]
[Date "2024.10.22"]
[Round "3.15"]
[White "Michalowski, Patryk"]
[Black "Tucker, David S"]
[Result "1-0"]
[ECO "B39"]
[WhiteElo "2054"]
[BlackElo "1921"]
[Annotator "RC"]
[PlyCount "81"]
[EventDate "2024.09.18"]
[EventType "swiss"]
[EventCountry "GRE"]
[SourceTitle "playchess.com"]
[Source "ChessBase"]
[SourceQuality "1"]
[TimeControl "5400+30"]

1. e4 {[%emt 0:01:22]} c5 {[%emt 0:00:10]} 2. Nf3 {[%emt 0:00:10]} Nc6 {[%emt 0:00:35]} 3. d4 {[%emt 0:00:07]} cxd4 {[%emt 0:00:12]} 4. Nxd4 {[%emt 0:00:05]} g6 {[%emt 0:01:09]} 5. c4 {[%emt 0:00:30]} Bg7 {[%emt 0:00:45]} 6. Be3 {[%emt 0:00:12]} Nf6 {[%emt 0:00:11]} 7. Nc3 {[%emt 0:00:08]} Ng4 {[%emt 0:02:57]} 8. Qxg4 {[%emt 0:00:28]} Nxd4 {[%emt 0:00:06]} 9. Qd1 {[%emt 0:00:16]} Ne6 {[%emt 0:00:13]} 10. Rc1 {[%emt 0:00:57]} Qa5 {[%emt 0:03:44]} 11. Be2 {[%emt 0:00:25]} b6 {[%emt 0:00:30]} 12. O-O {[%emt 0:00:27]} Bb7 {[%emt 0:00:10]} 13. f3 {[%emt 0:00:41]} g5 {[%emt 0:07:33]} 14. Rf2 {[%emt 0:01:11]} h5 {[%emt 0:01:50]} 15. Bf1 {[%emt 0:00:32]} Qe5 {[%emt 0:01:34]} 16. Nd5 {[%emt 0:02:21]} Rd8 {[%emt 0:04:31]} 17. Rd2 {[%emt 0:03:36]} h4 {[%emt 0:02:24]} 18. b4 {[%emt 0:02:38]} Qb8 {[%emt 0:00:47]} 19. Qa4 {[%emt 0:15:15]} Be5 {[%emt 0:00:56]} 20. h3 {[%emt 0:00:23]} Rh6 {[%emt 0:12:16]} 21. Rcd1 {[%emt 0:01:15]} Bc6 {[%emt 0:03:06]} 22. b5 {[%emt 0:02:54]} Bxd5 {[%emt 0:06:07]} 23. Rxd5 {[%emt 0:03:37]} d6 {[%emt 0:05:59]} 24. c5 {[%emt 0:04:42]} dxc5 {[%emt 0:01:46]} 25. Rxd8+ {[%emt 0:04:52]} Nxd8 {[%emt 0:00:10]} 26. Bxg5 {[%emt 0:03:23]} Rg6 {[%emt 0:05:23]} 27. Bxh4 {[%emt 0:00:39]} Bd4+ {[%emt 0:00:34]} 28. Rxd4 {[%emt 0:01:16]} cxd4 {[%emt 0:00:10]} 29. Qxd4 {[%emt 0:00:12]} Qd6 {[%emt 0:01:01]} 30. Qh8+ {[%emt 0:05:45]} Kd7 {[%emt 0:00:08]} 31. Bf2 {[%emt 0:03:45]} e5 {[%emt 0:01:34]} 32. h4 {[%emt 0:06:49]} Rh6 {[%emt 0:06:07]} 33. Qg7 {[%emt 0:00:18]} Rg6 {[%emt 0:00:20]} 34. Qh7 {[%emt 0:00:08]} Qe6 {[%emt 0:02:25]} 35. Be3 {[%emt 0:01:54]} Qxa2 {[%emt 0:01:47]} 36. h5 {[%emt 0:00:44]} Rd6 {[%emt 0:00:35]} 37. Qf5+ {[%emt 0:02:57]} Qe6 {[%emt 0:00:17]} 38. h6 {[%emt 0:00:34]} Qxf5 {[%emt 0:00:48]} 39. exf5 {[%emt 0:00:08]} f6 {[%emt 0:02:00]} 40. Bc4 {[%emt 0:00:09]} Rd1+ {[%emt 0:00:10]} 41. Kh2 {[%emt 0:00:13]} 1-0

[Event "34rd NATO Championship 2024"]
[Site "Rhodes"]
[Date "2024.10.22"]
[Round "3.16"]
[White "Kapsomenakis, Petros"]
[Black "Mihailov, Iulian"]
[Result "1/2-1/2"]
[ECO "A80"]
[WhiteElo "1914"]
[BlackElo "2048"]
[Annotator "RC"]
[PlyCount "75"]
[EventDate "2024.09.18"]
[EventType "swiss"]
[EventCountry "GRE"]
[SourceTitle "playchess.com"]
[Source "ChessBase"]
[SourceQuality "1"]
[TimeControl "5400+30"]

1. d4 {[%emt 0:00:03]} e6 {[%emt 0:00:02]} 2. Nf3 {[%emt 0:00:22]} f5 {[%emt 0:00:06]} 3. Bf4 {[%emt 0:00:55]} Nf6 {[%emt 0:00:04]} 4. e3 {[%emt 0:00:34]} b6 {[%emt 0:00:12]} 5. Nbd2 {[%emt 0:00:47]} Bb7 {[%emt 0:00:08]} 6. Be2 {[%emt 0:01:34]} Be7 {[%emt 0:00:19]} 7. O-O {[%emt 0:02:53]} Ne4 {[%emt 0:00:30]} 8. Nxe4 {[%emt 0:00:22]} fxe4 {[%emt 0:00:41]} 9. Nd2 {[%emt 0:00:02]} O-O {[%emt 0:01:09]} 10. c3 {[%emt 0:01:19]} Bd6 {[%emt 0:26:43]} 11. Bxd6 {[%emt 0:04:26]} cxd6 {[%emt 0:00:01]} 12. Qc2 {[%emt 0:03:18]} d5 {[%emt 0:05:48]} 13. Rae1 {[%emt 0:07:10]} Ba6 {[%emt 0:07:03]} 14. Bxa6 {[%emt 0:06:09]} Nxa6 {[%emt 0:00:01]} 15. f3 {[%emt 0:00:10]} exf3 {[%emt 0:00:38]} 16. Nxf3 {[%emt 0:02:26]} Nc7 {[%emt 0:02:35]} 17. e4 {[%emt 0:10:50]} Qe7 {[%emt 0:24:04]} 18. e5 {[%emt 0:01:19]} b5 {[%emt 0:01:27]} 19. Re2 {[%emt 0:09:42]} Rac8 {[%emt 0:02:26]} 20. Qd3 {[%emt 0:08:07]} a6 {[%emt 0:10:49]} 21. Ref2 {[%emt 0:00:16]} Rf5 {[%emt 0:04:55]} 22. Nd2 {[%emt 0:03:20]} Rxf2 {[%emt 0:01:08]} 23. Rxf2 {[%emt 0:00:02]} Rf8 {[%emt 0:02:24]} 24. Qf1 {[%emt 0:03:55]} Rxf2 {[%emt 0:02:21]} 25. Qxf2 {[%emt 0:00:02]} h6 {[%emt 0:04:12]} 26. Nb3 {[%emt 0:00:18]} b4 {[%emt 0:02:55]} 27. Nc5 {[%emt 0:00:45]} bxc3 {[%emt 0:00:18]} 28. bxc3 {[%emt 0:00:03]} Nb5 {[%emt 0:00:49]} 29. Qb2 {[%emt 0:00:46]} Qh4 {[%emt 0:00:38]} 30. g3 {[%emt 0:02:23]} Qg5 {[%emt 0:00:00]} 31. Kf2 {[%emt 0:24:37]} Qf5+ {[%emt 0:00:00]} 32. Kg2 {[%emt 0:01:28]} Qg6 {[%emt 0:01:20]} 33. a4 {[%emt 0:01:07]} d6 {[%emt 0:00:39]} 34. axb5 {[%emt 0:02:30]} dxc5 {[%emt 0:00:01]} 35. bxa6 {[%emt 0:01:00]} Qe4+ {[%emt 0:00:00]} 36. Kg1 {[%emt 0:02:12]} Qe1+ {[%emt 0:00:22]} 37. Kg2 {[%emt 0:00:12]} Qe4+ {[%emt 0:00:00]} 38. Kg1 {[%emt 0:01:25]} 1/2-1/2